Workbook

Sheet Pasiūlymas
A1: Perkantysis subjektas, kuriam teikiamas pasiūlymas: | C1: VŠĮ Kauno klinikinė ligoninė
B3: PASIŪLYMAS
B4: Vienkartinių priemonių papildomas pirkimas
A6: Data: | B6: 2019-07-08
A7: Nr.: | B7: 19-247
A8: Vieta: | B8: Vilnius
A10: Tiekėjo arba tiekėjų grupės narių pavadinimas (-ai) | C10: UAB Mediq Lietuva
A11: Tiekėjo arba tiekėjo grupės narių juridinio asmens kodas (-ai) (tuo atveju, jei pasiūlymą teikia fizinis asmuo - verslo pažymėjimo Nr. ar pan.) | C11: 302513086
A12: Tiekėjo arba tiekėjo grupės narių PVM mokėtojo kodas (-ai) | C12: x
A13: Tiekėjų grupės narys, atstovaujantis arba vadovaujantis tiekėjų grupei (pildoma, jei pasiūlymą teikia tiekėjų grupė) | C13: x
A14: Tiekėjo valdymo ar priežiūros organo narys (-iai) ar kitas asmuo (-ys), turintis (-ys) teisę atstovauti tiekėjui ar jį kontroliuoti, jo vardu priimti sprendimą, sudaryti sandorį | C14: x
A15: Tiekėjo arba atstovaujančio tiekėjų grupės nario adresas, telefono numeris, fakso numeris, el. paštas | C15: (8 5) 2688451, (8 5) 2688470, mediqlietuva@mediq.com
A16: Tiekėjo arba atstovaujančio tiekėjų grupės nario banko pavadinimas, banko kodas, sąskaitos Nr. | C16: Danske Bank A/S Lietuvos filialas, banko kodas 7400, Nr. LT35 7400 0427 2772 3810
A17: Asmens, įgalioto pasirašyti sutartį, vardas, pavardė, pareigos | C17: Giedrius Marcinkonis, generalinis direktorius
A18: Asmens, atsakingo už pirkimą, vardas, pavardė, telefono numeris, el. paštas | C18: Inga Rinkevičienė, (8 5) 2688445, inga.rinkeviciene@mediq.com
A24: Siūlomas pirkimo objektas visiškai atitinka pirkimo sąlygose nustatytus reikalavimus ir jo kaina yra:
A28: Nr. | B28: Pavadinimas | C28: Maksimalus kiekis | D28: Mato vienetas | E28: Vieneto įkainis be PVM, Eur | F28: Suma be PVM, Eur | G28: Siūlomi produktai | H28: Siūlomo produkto parametrai
A29: 1. | B29: Kateteriai bambos arterijos
A30: 1.1. | B30: Kateteris bambos arterijos CH6 | C30: 30 | D30: vnt | F30: =IF(ISBLANK(E30),"", PRODUCT(C30,E30)) -> 
A31: 1.1.1. | B31: Ilgis 40cm ± 1cm
A32: 1.1.2. | B32: Centrimetrinis žymėjimas nuo 5 iki 25cm kas 1cm
A33: 1.1.3. | B33: Pagamintas iš PVC be DEHP
A34: 1.1.4. | B34: Skaidrus, rentgenokontrastinis, lankstus, termolabilus
A35: 1.1.5. | B35: Naudojamas arterijos arba venos kateterizavimui
A36: 1.1.6. | B36: Su dviem šoninėm angom, su atviru užapvalintu distaliniu galiuku
A37: 1.1.7. | B37: Kateteris apsaugomas nuo pažeidimų tvirtoje sterilioje movoje
A38: 1.2. | B38: Kateteris bambos arterijos CH8 | C38: 30 | D38: vnt | F38: =IF(ISBLANK(E38),"", PRODUCT(C38,E38)) -> 
A39: 1.2.1. | B39: Ilgis 40cm ± 1cm
A40: 1.2.2. | B40: Centrimetrinis žymėjimas nuo 5 iki 25cm kas 1cm
A41: 1.2.3. | B41: Pagamintas iš PVC be DEHP
A42: 1.2.4. | B42: Skaidrus, rentgenokontrastinis, lankstus, termolabilus
A43: 1.2.5. | B43: Naudojamas arterijos arba venos kateterizavimui
A44: 1.2.6. | B44: Su dviem šoninėm angom, su atviru užapvalintu distaliniu galiuku
A45: 1.2.7. | B45: Kateteris apsaugomas nuo pažeidimų tvirtoje sterilioje movoje
E46: Suma be PVM | F46: =IF(OR(F30="", F30="", F30="", F30="", F30="", F30="", F38="", F38="", F38="", F38="", F38="", F38=""),"",SUM(F30:F45)) ->  | G46: =IF(OR(F30="", F30="", F30="", F30="", F30="", F30="", F38="", F38="", F38="", F38="", F38="", F38="", F38=""),"Neužpildytos visų objektų kainos","") -> Neužpildytos visų objektų kainos
E47: PVM suma
E48: Suma su PVM | F48: =IF(ISBLANK(F47), "", SUM(F46:F47)) -> 
A50: 2. | B50: Kateteriai nefrostominiai pakeitimui
A51: 2.1. | B51: Kateteris nefrostominis pakeitimui Fr10 | C51: 50 | D51: vnt | F51: =IF(ISBLANK(E51),"", PRODUCT(C51,E51)) -> 
A52: 2.1.1. | B52: Su lenktu galu
A53: 2.1.2. | B53: Galiukas atviras
A54: 2.1.3. | B54: Styga įvedimui
A55: 2.2. | B55: Kateteris nefrostominis pakeitimui Fr12 | C55: 50 | D55: vnt | F55: =IF(ISBLANK(E55),"", PRODUCT(C55,E55)) -> 
A56: 2.2.1. | B56: Su lenktu galu
A57: 2.2.2. | B57: Galiukas atviras
A58: 2.2.3. | B58: Styga įvedimui
E59: Suma be PVM | F59: =IF(OR(F51="", F51="", F51="", F51="", F51="", F51="", F55="", F55="", F55="", F55="", F55="", F55=""),"",SUM(F51:F58)) ->  | G59: =IF(OR(F51="", F51="", F51="", F51="", F51="", F51="", F55="", F55="", F55="", F55="", F55="", F55="", F55=""),"Neužpildytos visų objektų kainos","") -> Neužpildytos visų objektų kainos
E60: PVM suma
E61: Suma su PVM | F61: =IF(ISBLANK(F60), "", SUM(F59:F60)) -> 
A63: 3. | B63: Kateteriai nefrostominiai pakeitimui
A64: 3.1. | B64: Kateteris nefrostominis pakeitimui CH8 | C64: 50 | D64: vnt | F64: =IF(ISBLANK(E64),"", PRODUCT(C64,E64)) -> 
A65: 3.1.1. | B65: Kateteris pagamintas iš standaus alifatinio poliuretano
A66: 3.1.2. | B66: Su Luer Lock jungtimi
A67: 3.1.3. | B67: Ilgis 34 ± 1cm
A68: 3.2. | B68: Kateteris nefrostominis pakeitimui CH10 | C68: 50 | D68: vnt | F68: =IF(ISBLANK(E68),"", PRODUCT(C68,E68)) -> 
A69: 3.2.1. | B69: Kateteris pagamintas iš standaus alifatinio poliuretano
A70: 3.2.2. | B70: Su Luer Lock jungtimi
A71: 3.2.3. | B71: Ilgis 34 ± 1cm
E72: Suma be PVM | F72: =IF(OR(F64="", F64="", F64="", F64="", F64="", F64="", F68="", F68="", F68="", F68="", F68="", F68=""),"",SUM(F64:F71)) ->  | G72: =IF(OR(F64="", F64="", F64="", F64="", F64="", F64="", F68="", F68="", F68="", F68="", F68="", F68="", F68=""),"Neužpildytos visų objektų kainos","") -> Neužpildytos visų objektų kainos
E73: PVM suma
E74: Suma su PVM | F74: =IF(ISBLANK(F73), "", SUM(F72:F73)) -> 
A76: 4. | B76: Vienkartinės polipektominės kilpos besikeisiančio diametro
A77: 4.1. | B77: Vienkartinės polipektominės kilpos besikeisiančio diametro | C77: 100 | D77: vnt | F77: =IF(ISBLANK(E77),"", PRODUCT(C77,E77)) -> 
A78: 4.1.1. | B78: Kilpos, besikeičiančio diametro darbiniam kanalui 2.8mm+/-0,1
A79: 4.1.2. | B79: Elektrochirurginis prietaisas, skirtas suimti ir pjauti virškinamojo trakto audinius endoskopijos procedūros metu
A80: 4.1.3. | B80: Reguliuojant kilpos poziciją šarvo atžvilgiu turi būti galimybė keisti kilpos formą (ovali-šešiakampė-“deimanto“) ir dydį (plotis nuo 6 mm iki 30 mm, ilgis nuo 15 iki 55 mm ).
A81: 4.1.4. | B81: Kilpa turi būti pagaminta iš standžios, plokščios vielos
A82: 4.1.5. | B82: Šarvo diametras 2,3 mm+/-0,1, ilgis 230 cm ± 5 cm
E83: Suma be PVM | F83: =IF(OR(F77="", F77="", F77="", F77="", F77="", F77=""),"",SUM(F77:F82)) ->  | G83: =IF(OR(F77="", F77="", F77="", F77="", F77="", F77="", F77=""),"Neužpildytos visų objektų kainos","") -> Neužpildytos visų objektų kainos
E84: PVM suma
E85: Suma su PVM | F85: =IF(ISBLANK(F84), "", SUM(F83:F84)) -> 
A87: 5. | B87: Endoskopinis pjovimo įrankis
A88: 5.1. | B88: Endoskopinis pjovimo įrankis | C88: 50 | D88: vnt | F88: =IF(ISBLANK(E88),"", PRODUCT(C88,E88)) -> 
A89: 5.1.1. | B89: Monofilamentinės standžios, plokščios, persuktos vielos pjovimo įrankis
A90: 5.1.2. | B90: Skirtas labai plokščių polipų šalinimui
A91: 5.1.3. | B91: Kilpos dydis 14-27 mm
E92: Suma be PVM | F92: =IF(OR(F88="", F88="", F88="", F88="", F88="", F88=""),"",SUM(F88:F91)) ->  | G92: =IF(OR(F88="", F88="", F88="", F88="", F88="", F88="", F88=""),"Neužpildytos visų objektų kainos","") -> Neužpildytos visų objektų kainos
E93: PVM suma
E94: Suma su PVM | F94: =IF(ISBLANK(F93), "", SUM(F92:F93)) -> 
A96: 6. | B96: Tiesioginio siurbimo ir plovimo prietaisas endoskopui
A97: 6.1. | B97: Tiesioginio siurbimo ir plovimo prietaisas endoskopui | C97: 50 | D97: vnt | F97: =IF(ISBLANK(E97),"", PRODUCT(C97,E97)) -> 
A98: 6.1.1. | B98: Prietaisas skirtas virškinamojo trakto tiesioginiam intensyviam siurbimui ir plovimui endoskopijos procedūros metu per endoskopo biopsijos/siurbimo kanalą
A99: 6.1.2. | B99: Prietaiso dėka turi būti įmanoma greitai įsiurbti didelį tūrį sunkai pašalinamų, klampių darinių, audinių (pvz. krešuliai, naviko masė), plovimui naudoti didelį kiekį skysčių
A100: 6.1.3. | B100: Naudojamo prietaiso veikimo laukas – priešais kontrolinę endoskopo galvutę
A101: 6.1.4. | B101: Vienkartinio naudojimo. Pagamintas iš plastiko, be latekso
E102: Suma be PVM | F102: =IF(OR(F97="", F97="", F97="", F97="", F97="", F97=""),"",SUM(F97:F101)) ->  | G102: =IF(OR(F97="", F97="", F97="", F97="", F97="", F97="", F97=""),"Neužpildytos visų objektų kainos","") -> Neužpildytos visų objektų kainos
E103: PVM suma
E104: Suma su PVM | F104: =IF(ISBLANK(F103), "", SUM(F102:F103)) -> 
A106: 7. | B106: Endoskopinė kabučių sistema
A107: 7.1. | B107: Endoskopinė kabučių sistema | C107: 15 | D107: vnt | F107: =IF(ISBLANK(E107),"", PRODUCT(C107,E107)) -> 
A108: 7.1.1. | B108: OVESCO OTSC sistemos rinkinys, skirtas audinių vientisumo atstatymui virškinamajame trakte
E109: Suma be PVM | F109: =IF(OR(F107="", F107="", F107="", F107="", F107="", F107=""),"",SUM(F107:F108)) ->  | G109: =IF(OR(F107="", F107="", F107="", F107="", F107="", F107="", F107=""),"Neužpildytos visų objektų kainos","") -> Neužpildytos visų objektų kainos
E110: PVM suma
E111: Suma su PVM | F111: =IF(ISBLANK(F110), "", SUM(F109:F110)) -> 
A113: 8. | B113: Polipų gaudyklė
A114: 8.1. | B114: Polipų gaudyklė | C114: 100 | D114: vnt | F114: =IF(ISBLANK(E114),"", PRODUCT(C114,E114)) -> 
A115: 8.1.1. | B115: Vienkartinio naudojimo, skirta Olympus sistemos pompai
E116: Suma be PVM | F116: =IF(OR(F114="", F114="", F114="", F114="", F114="", F114=""),"",SUM(F114:F115)) ->  | G116: =IF(OR(F114="", F114="", F114="", F114="", F114="", F114="", F114=""),"Neužpildytos visų objektų kainos","") -> Neužpildytos visų objektų kainos
E117: PVM suma
E118: Suma su PVM | F118: =IF(ISBLANK(F117), "", SUM(F116:F117)) -> 
A120: 9. | B120: Vielos (prie rezektoskopo)
A121: 9.1. | B121: Vielos (prie rezektoskopo) | C121: 20 | D121: vnt | F121: =IF(ISBLANK(E121),"", PRODUCT(C121,E121)) -> 
A122: 9.1.1. | B122: 1:1 sukimo perdavimas
A123: 9.1.2. | B123: Dengtos hidrofiline danga nuo 0,032 iki 0,035“storio, nuo 150 iki 180cm ilgio
A124: 9.1.3. | B124: Galimi modeliai: plieno arba 100% nitinolio
A125: 9.1.4. | B125: Modelis skirtas naudoti per odą >100cm ilgio, >7cm lenktu arba tiesiu galu
A126: 9.1.5. | B126: Galiukas tiesus arba lenktas ne mažiau 3cm, netraumuojantis (lankstus arba kietas)
E127: Suma be PVM | F127: =IF(OR(F121="", F121="", F121="", F121="", F121="", F121=""),"",SUM(F121:F126)) ->  | G127: =IF(OR(F121="", F121="", F121="", F121="", F121="", F121="", F121=""),"Neužpildytos visų objektų kainos","") -> Neužpildytos visų objektų kainos
E128: PVM suma
E129: Suma su PVM | F129: =IF(ISBLANK(F128), "", SUM(F127:F128)) -> 
A131: 10. | B131: Barono žiedai
A132: 10.1. | B132: Barono žiedai | C132: 400 | D132: vnt | F132: =IF(ISBLANK(E132),"", PRODUCT(C132,E132)) -> 
A133: 10.1.1. | B133: Skirti hemoroidinių mazgų ligavimui
A134: 10.1.2. | B134: Ypač stiprūs, su lateksu
E135: Suma be PVM | F135: =IF(OR(F132="", F132="", F132="", F132="", F132="", F132=""),"",SUM(F132:F134)) ->  | G135: =IF(OR(F132="", F132="", F132="", F132="", F132="", F132="", F132=""),"Neužpildytos visų objektų kainos","") -> Neužpildytos visų objektų kainos
E136: PVM suma
E137: Suma su PVM | F137: =IF(ISBLANK(F136), "", SUM(F135:F136)) -> 
A139: 11. | B139: Kilpa inokuliacinė
A140: 11.1. | B140: Kilpa inokuliacinė | C140: 20 | D140: vnt | F140: =IF(ISBLANK(E140),"", PRODUCT(C140,E140)) -> 
A141: 11.1.1. | B141: Vienkartinės sterilios polistireno kilpos
A142: 11.1.2. | B142: Gale 1 ul (mikrona) kilpa, kitame gale polistireno adata
E143: Suma be PVM | F143: =IF(OR(F140="", F140="", F140="", F140="", F140="", F140=""),"",SUM(F140:F142)) ->  | G143: =IF(OR(F140="", F140="", F140="", F140="", F140="", F140="", F140=""),"Neužpildytos visų objektų kainos","") -> Neužpildytos visų objektų kainos
E144: PVM suma
E145: Suma su PVM | F145: =IF(ISBLANK(F144), "", SUM(F143:F144)) -> 
A147: 12. | B147: Šviesolaidžiai lipolizei
A148: 12.1. | B148: Šviesolaidžiai lipolizei. Daugkartiniai | C148: 30 | D148: vnt | F148: =IF(ISBLANK(E148),"", PRODUCT(C148,E148)) -> 
A149: 12.1.1. | B149: Tinkantys lazeriui modelis FOX 980mm arba pateikti lygiavertį lazerį panaudai
A150: 12.1.2. | B150: 400-600µm šviesolaidis
E151: Suma be PVM | F151: =IF(OR(F148="", F148="", F148="", F148="", F148="", F148=""),"",SUM(F148:F150)) ->  | G151: =IF(OR(F148="", F148="", F148="", F148="", F148="", F148="", F148=""),"Neužpildytos visų objektų kainos","") -> Neužpildytos visų objektų kainos
E152: PVM suma
E153: Suma su PVM | F153: =IF(ISBLANK(F152), "", SUM(F151:F152)) -> 
A155: 13. | B155: Silikoninės žarnelės
A156: 13.1. | B156: Silikoninės žarnelės | C156: 50 | D156: vnt | F156: =IF(ISBLANK(E156),"", PRODUCT(C156,E156)) -> 
A157: 13.1.1. | B157: Vienkartinės, sterilios
A158: 13.1.2. | B158: Silikoninės žarnelės su slėgine galvute, skirtos skysčio padavimui hysteroskopijos metu
A159: 13.1.3. | B159: Tinkamos naudoti su ligoninės turima firmos „Karl Storz“ pompa „Hamau Endomat“ arba pateikti lygiaverčią pompą panaudai
E160: Suma be PVM | F160: =IF(OR(F156="", F156="", F156="", F156="", F156="", F156=""),"",SUM(F156:F159)) ->  | G160: =IF(OR(F156="", F156="", F156="", F156="", F156="", F156="", F156=""),"Neužpildytos visų objektų kainos","") -> Neužpildytos visų objektų kainos
E161: PVM suma
E162: Suma su PVM | F162: =IF(ISBLANK(F161), "", SUM(F160:F161)) -> 
A164: 14. | B164: Apsauginė prilaikomoji pirštinė
A165: 14.1. | B165: Apsauginė prilaikomoji pirštinė M | C165: 50 | D165: vnt | F165: =IF(ISBLANK(E165),"", PRODUCT(C165,E165)) -> 
A166: 14.1.1. | B166: Neleidžia pacientui susižeisti ar nuplėšti zondų, kateterių, vamzdelių.
A167: 14.1.2. | B167: Tvirtinasi lipduko pagalba, galima tvirtinti prie lovos rėmo.
A168: 14.1.3. | B168: Pagaminta iš minkšto poliesterio ir viskozės.
A169: 14.1.4. | B169: Dydžiai M – riešo apimtis 24 cm ±1cm, plaštakos ilgis 20 cm ±1cm.
A170: 14.2. | B170: Apsauginė prilaikomoji pirštinė L | C170: 50 | D170: vnt | F170: =IF(ISBLANK(E170),"", PRODUCT(C170,E170)) -> 
A171: 14.2.1. | B171: Neleidžia pacientui susižeisti ar nuplėšti zondų, kateterių, vamzdelių.
A172: 14.2.2. | B172: L – riešo apimtis 28 cm ± 1cm, plaštakos ilgis 23 cm ± 1cm.
A173: 14.2.3. | B173: Skalbiama 40° laipsnių temperatūroje.
A174: 14.2.4. | B174: Pažymėta CE ženklu
E175: Suma be PVM | F175: =IF(OR(F165="", F165="", F165="", F165="", F165="", F165="", F170="", F170="", F170="", F170="", F170="", F170=""),"",SUM(F165:F174)) ->  | G175: =IF(OR(F165="", F165="", F165="", F165="", F165="", F165="", F170="", F170="", F170="", F170="", F170="", F170="", F170=""),"Neužpildytos visų objektų kainos","") -> Neužpildytos visų objektų kainos
E176: PVM suma
E177: Suma su PVM | F177: =IF(ISBLANK(F176), "", SUM(F175:F176)) -> 
A179: 15. | B179: PEG rinkinys CH18
A180: 15.1. | B180: PEG rinkinys CH18 | C180: 60 | D180: vnt | F180: =IF(ISBLANK(E180),"", PRODUCT(C180,E180)) -> 
A181: 15.1.1. | B181: Rinkinys perkutaninei endoskopinei gastrostomijai PEG: gastrostominis vamzdelis su integruota kilpa, vienkartinis, sterilus, rentgenokontrastinis, dydis CH18
A182: 15.1.2. | B182: Endoskopo kontrolėje, gastrostomos vamzdelis į skrandį įvedamas taikant „traukimo techniką“, su pritvirtintu vidiniu fiksatoriumi.Vidinio fiksatoriaus konstrukcija, turi būti tokia, kad būtų galima pašalinti PEG kateterį per pilvo sieną nenaudojant endoskopo. Būtina išorinė fiksavimo polkštelė, leidžianti PEG kateterį fiksuoti prie pilvo sienos.
A183: 15.1.3. | B183: Rinkinyje turi būti punkcinė adata, ritinys su traukimo siūlu, dvigubos kilpos jungtis tarp traukimo siūlo ir gastrostomos vamzdelio.
A184: 15.1.4. | B184: Perkančioji organizacija prašo pateikti šios pirkimo dalies pavyzdį
E185: Suma be PVM | F185: =IF(OR(F180="", F180="", F180="", F180="", F180="", F180=""),"",SUM(F180:F184)) ->  | G185: =IF(OR(F180="", F180="", F180="", F180="", F180="", F180="", F180=""),"Neužpildytos visų objektų kainos","") -> Neužpildytos visų objektų kainos
E186: PVM suma
E187: Suma su PVM | F187: =IF(ISBLANK(F186), "", SUM(F185:F186)) -> 
A189: 16. | B189: PEG rinkinys CH20
A190: 16.1. | B190: PEG rinkinys CH20 | C190: 20 | D190: vnt | F190: =IF(ISBLANK(E190),"", PRODUCT(C190,E190)) -> 
A191: 16.1.1. | B191: Rinkinys perkutaninei endoskopinei gastrostomijai PEG: gastrostominis vamzdelis su integruota kilpa, vienkartinis, sterilus, rentgenokontrastinis, dydis CH20
A192: 16.1.2. | B192: Endoskopo kontrolėje, gastrostomos vamzdelis į skrandį įvedamas taikant „traukimo techniką“, su pritvirtintu vidiniu fiksatoriumi.Vidinio fiksatoriaus konstrukcija, turi būti tokia, kad būtų galima pašalinti PEG kateterį per pilvo sieną nenaudojant endoskopo. Būtina išoriėe fiksavimo polkštelė, leidžianti PEG kateterį fiksuoti prie pilvo sienos.
A193: 16.1.3. | B193: Rinkinyje turi būti punkcinė adata, ritinys su traukimo siūlu, dvigubos kilpos jungtis tarp traukimo siūlo ir gastrostomos vamzdelio.
A194: 16.1.4. | B194: Perkančioji organizacija prašo pateikti šios pirkimo dalies pavyzdį
E195: Suma be PVM | F195: =IF(OR(F190="", F190="", F190="", F190="", F190="", F190=""),"",SUM(F190:F194)) ->  | G195: =IF(OR(F190="", F190="", F190="", F190="", F190="", F190="", F190=""),"Neužpildytos visų objektų kainos","") -> Neužpildytos visų objektų kainos
E196: PVM suma
E197: Suma su PVM | F197: =IF(ISBLANK(F196), "", SUM(F195:F196)) -> 
A199: 17. | B199: Adatos odos dūrio mėginiams atlikti PLASTIKINĖS
A200: 17.1. | B200: Adatos odos dūrio mėginiams atlikti PLASTIKINĖS | C200: 6000 | D200: vnt | F200: =IF(ISBLANK(E200),"", PRODUCT(C200,E200)) -> 
A201: 17.1.1. | B201: Adata dūrio mėginiui turi būti plastikinė
A202: 17.1.2. | B202: Perkančioji organizacija prašo pateikti šios pirkimo dalies pavyzdį
E203: Suma be PVM | F203: =IF(OR(F200="", F200="", F200="", F200="", F200="", F200=""),"",SUM(F200:F202)) ->  | G203: =IF(OR(F200="", F200="", F200="", F200="", F200="", F200="", F200=""),"Neužpildytos visų objektų kainos","") -> Neužpildytos visų objektų kainos
E204: PVM suma
E205: Suma su PVM | F205: =IF(ISBLANK(F204), "", SUM(F203:F204)) -> 
A207: 18. | B207: Priemonės miografiniam ir neurografiniam tyrimui
A208: 18.1. | B208: Vienkartinis paviršinis elektrodas | C208: 700 | D208: vnt | F208: =IF(ISBLANK(E208),"", PRODUCT(C208,E208)) -> 
A209: 18.1.1. | B209: Kiekvienas elektrodas turi sidabro- sidabro chlorido registruojantį paviršių su limpamu hidro-geliniu ir galimu perklijavimu tam pačiam pacientui
A210: 18.1.2. | B210: Elektrodo registruojanti diametras 9mm x 6mm+/-0,1mm
A211: 18.1.3. | B211: Elektrodo laido ilgis 10 cm+/-2cm
A212: 18.1.4. | B212: Elektrodo laido jungtis 0,7mm female TP+/-0,1 mm
A213: 18.2. | B213: Vienkartinis įžeminimo elektrodas be laido | C213: 400 | D213: vnt | F213: =IF(ISBLANK(E213),"", PRODUCT(C213,E213)) -> 
A214: 18.2.1. | B214: Lipduko tipo gelinis limpamasis elektrodas
A215: 18.2.2. | B215: Elektrodo diametras 40mm x 20mm arba 30mm x 25mm+/-0,1
A216: 18.3. | B216: Ekranuotas kabelis vienkartiniams paviršiniams geliniams elektrodams | C216: 2 | D216: vnt | F216: =IF(ISBLANK(E216),"", PRODUCT(C216,E216)) -> 
A217: 18.3.1. | B217: Ekranuotas kabelis yra su dviem laidais - vienkartiniams geliniams ir registruojantiems elektrodams anodui ir katodui
A218: 18.3.2. | B218: Kabelio ilgis 1 m.+/-10 cm Elekrodų jungtis 2 x 0,7mm.+/-0,1 Kabelio jungtis prie aparato 5 pole DIN
A219: 18.4. | B219: Ekranuotas kabelis vienkartiniams paviršiniams geliniams elektrodams | C219: 1 | D219: vnt | F219: =IF(ISBLANK(E219),"", PRODUCT(C219,E219)) -> 
A220: 18.4.1. | B220: Ekranuotas kabelis yra su dviem laidais - vienkartiniams geliniams ir registruojantiems elektrodams anodui ir katodui
A221: 18.4.2. | B221: Kabelio ilgis 2m. +/- 10 cm. Elektrodų jungtis 2 x 0,7mm. +/-0,1 Kabelio jungtis prie aparato 5 Pole DIN
A222: 18.5. | B222: Laidas įžeminimui | C222: 4 | D222: vnt | F222: =IF(ISBLANK(E222),"", PRODUCT(C222,E222)) -> 
A223: 18.5.1. | B223: Laidas, "krokodilo" gnybto tipo, skirtas vienkartiniams geliniams limpamiesiems ir belaidžiams įžeminimo elektrodams
A224: 18.5.2. | B224: Laidas nenekranuotas
A225: 18.5.3. | B225: Laido ilgis 80 cm. +/-10 cm Laido jungtis prie elektrodo - "krokodilo" gnybto tipo, žalias
A226: 18.5.4. | B226: Laido jungtis prie aparato 1,5 mm +/- 0,1 mm female TP. Laidas nenekranuotas
A227: 18.6. | B227: Rankinis stimuliuojantis elektrodas neurografijai | C227: 1 | D227: vnt | F227: =IF(ISBLANK(E227),"", PRODUCT(C227,E227)) -> 
A228: 18.6.1. | B228: Rankinis stimuliuojantis elektrodas skirtas bipoliarinei nervo stimuliacijai
... 322 more rows

Sheet Subtiekėjai
A2: Subtiekėjai ir jiems perduodama vykdyti pirkimo sutarties dalis:
A4: Eil. Nr | C4: Subtiekėjo pavadinimas | F4: Pirkimo objekto dalies, perduodamos vykdyti subtiekėjui, aprašymas | I4: Procentas perduodamos vykdyti pirkimo objekto dalies nuo pasiūlymo kainos su PVM (pildoma, jei ūkio subjektas vykdys sutartį)
A11: Kartu su pasiūlymu pateikiami šie dokumentai:
A13: Eil.Nr. | B13: Dokumentas | E13: Ar dokumnetas konfidencialus? (Taip/Ne) | G13: Prisegtos bylos (failo) pavadinimas | I13: Paaiškinimas, kokia konkreti informacija dokumente yra konfidenciali
A20: Pasirašydamas šį pasiūlymą, tvirtintu, kad: 1) pasiūlymo dokumentuose pateikti duomenys yra tikri; 2) siūlomas Pirkimo objektas visiškai atitinka Pirkimo dokumentuose nustatytus reikalavimus; 3) sutinku su visomis Pirkimo dokumentuose nustatytomis sąlygomis; 4) pasiūlymas galioja iki termino, nustatyto Pirkimo dokumentuose; 5) mes esame / nesame (nereikalingą išbraukti) laikomi asocijuotais (susijusiais) su Perkančiuoju subjektu pagal Lietuvos Respublikoje galiojančių teisės aktų (Lietuvos Respublikos pelno mokesčio, Lietuvos Respublikos pridėtinės vertės mokesčio ir Lietuvos Respublikos gyventojų pajamų mokesčio įstatymų) nuostatas; 6) savo pasiūlymo galiojimą užtikrinsiu pagal Specialiųjų sąlygų 6.1 punktą (jei taikoma).
A22: Pasiūlymo galiojimo užtikrinimui pateikiame :
A24: (Nurodyti užtikrinimo būdą, dydį, dokumentus)
A26: Pasiūlymas galioja iki termino, nustatyto pirkimo dokumentuose. Pasiūlymo neatskiriama dalis yra (rašoma, jeigu buvo reikalauta prie pasiūlymo pridėti atitinkamą dokumentą)
A30: Tiekėjo arba jo įgalioto asmens pareigų pavadinimas
A33: Pasirašančio asmens vardas ir pavardė
A100: 2928-1 2019-05-29 11:33:14
